[Event "Lueneburg Open-B 2019"]
[Site "Lueneburg"]
[Date "2019.08.06"]
[Round "4.3"]
[White "Neumann, Lutz"]
[Black "Rewerts, Ingo"]
[Result "0-1"]
[ECO "B01"]
[WhiteElo "1784"]
[BlackElo "1792"]
[Annotator "NA"]
[PlyCount "110"]
[EventDate "2019.08.03"]
[EventType "swiss"]
[EventCountry "GER"]
[SourceTitle "playchess.com"]
[Source "ChessBase"]
[SourceQuality "1"]
[TimeControl "40/5400+30:1800+30"]

1. e4 {[%emt 0:00:00]} d5 {[%emt 0:00:00]} 2. exd5 {[%emt 0:00:00]} Qxd5 {[%emt 0:00:00]} 3. Nc3 {[%emt 0:00:00]} Qa5 {[%emt 0:00:03]} 4. d4 {[%emt 0:00:11]} c6 {[%emt 0:00:21]} 5. Bc4 {[%emt 0:00:56]} Nf6 {[%emt 0:00:24]} 6. Qe2 {[%emt 0:09:05]} Bg4 {[%emt 0:02:03]} 7. Nf3 {[%emt 0:00:26]} e6 {[%emt 0:00:41]} 8. Bb3 {[%emt 0:01:26]} Bd6 {[%emt 0:02:24]} 9. Bd2 {[%emt 0:04:45]} Qh5 {[%emt 0:02:36]} 10. O-O-O {[%emt 0:02:36]} Nbd7 {[%emt 0:01:58]} 11. Rde1 {[%emt 0:02:35]} O-O-O {[%emt 0:01:21]} 12. Ne4 {[%emt 0:04:15]} Nxe4 {[%emt 0:00:12]} 13. Qxe4 {[%emt 0:00:09]} Nf6 {[%emt 0:05:21]} 14. Qe3 {[%emt 0:03:20]} Bxf3 {[%emt 0:00:50]} 15. gxf3 {[%emt 0:00:41]} Nd5 {[%emt 0:01:55]} 16. Qe4 {[%emt 0:01:48]} Nf6 {[%emt 0:09:04]} 17. Qe3 {[%emt 0:00:30]} Rhe8 {[%emt 0:02:00]} 18. Reg1 {[%emt 0:04:31]} g6 {[%emt 0:05:45]} 19. d5 {[%emt 0:05:33]} Nxd5 {[%emt 0:04:14]} 20. Qxa7 {[%emt 0:05:51]} Bf4 {[%emt 0:05:57]} 21. Qa8+ {[%emt 0:05:14]} Kc7 {[%emt 0:00:15]} 22. Qa5+ {[%emt 0:00:33]} Kb8 {[%emt 0:00:41]} 23. Bxf4+ {[%emt 0:03:32]} Nxf4 {[%emt 0:00:18]} 24. Qxh5 {[%emt 0:02:12]} Nxh5 {[%emt 0:00:03]} 25. Rd1 {[%emt 0:00:27]} Nf4 {[%emt 0:01:02]} 26. Rhe1 {[%emt 0:01:42]} Kc7 {[%emt 0:01:48]} 27. Re4 {[%emt 0:02:35]} Rxd1+ {[%emt 0:00:36]} 28. Kxd1 {[%emt 0:01:12]} Rd8+ {[%emt 0:00:02]} 29. Ke1 {[%emt 0:00:46]} g5 {[%emt 0:06:25]} 30. h4 {[%emt 0:01:15]} Ng2+ {[%emt 0:01:47]} 31. Ke2 {[%emt 0:00:10]} Nxh4 {[%emt 0:00:14]} 32. f4 {[%emt 0:01:55]} g4 {[%emt 0:03:59]} 33. Bc4 {[%emt 0:10:04]} Nf5 {[%emt 0:02:45]} 34. Bd3 {[%emt 0:02:59]} h5 {[%emt 0:02:13]} 35. Re5 {[%emt 0:02:35]} Rd5 {[%emt 0:13:56]} 36. Re4 {[%emt 0:06:04]} h4 {[%emt 0:02:39]} 37. Kf1 {[%emt 0:00:52]} Rd4 {[%emt 0:01:49]} 38. Rxd4 {[%emt 0:04:47]} Nxd4 {[%emt 0:00:03]} 39. c3 {[%emt 0:00:14]} Nf5 {[%emt 0:02:31]} 40. Be2 {[%emt 0:02:05]} Nh6 {[%emt 0:00:42]} 41. Kg2 {[%emt 0:32:18]} f5 {[%emt 0:32:05]} 42. f3 {[%emt 0:02:33]} Kd6 {[%emt 0:03:21]} 43. a4 {[%emt 0:01:04]} e5 {[%emt 0:01:35]} 44. fxe5+ {[%emt 0:01:19]} Kxe5 {[%emt 0:00:07]} 45. b4 {[%emt 0:00:27]} Kf4 {[%emt 0:00:16]} 46. c4 {[%emt 0:01:16]} Ke3 {[%emt 0:06:37]} 47. Bd1 {[%emt 0:02:29]} Kd3 {[%emt 0:05:35]} 48. b5 {[%emt 0:00:00]} cxb5 {[%emt 0:00:00]} 49. cxb5 {[%emt 0:00:00]} Kc4 {[%emt 0:00:00]} 50. Be2+ {[%emt 0:00:00]} Kb4 {[%emt 0:00:00]} 51. Bd1 {[%emt 0:00:00]} h3+ {[%emt 0:00:00]} 52. Kh2 {[%emt 0:00:00]} b6 {[%emt 0:00:00]} 53. fxg4 {[%emt 0:00:00]} Nxg4+ {[%emt 0:00:00]} 54. Kg1 {[%emt 0:00:00]} h2+ {[%emt 0:00:00]} 55. Kg2 {[%emt 0:00:00]} Ne3+ {[%emt 0:00:00]} 0-1

[Event "Lueneburg Open-B 2019"]
[Site "Lueneburg"]
[Date "2019.08.06"]
[Round "4.4"]
[White "Schencke, Guenther"]
[Black "Thomas, Jeremy"]
[Result "0-1"]
[ECO "D03"]
[WhiteElo "1668"]
[BlackElo "1717"]
[Annotator "NA"]
[PlyCount "110"]
[EventDate "2019.08.03"]
[EventType "swiss"]
[EventCountry "GER"]
[SourceTitle "playchess.com"]
[Source "ChessBase"]
[SourceQuality "1"]
[TimeControl "40/5400+30:1800+30"]

1. Nf3 {[%emt 0:00:00]} d5 {[%emt 0:00:00]} 2. d4 {[%emt 0:00:00]} c5 {[%emt 0:00:00]} 3. dxc5 {[%emt 0:04:37]} e6 {[%emt 0:07:54]} 4. Bg5 {[%emt 0:07:29]} Nf6 {[%emt 0:02:52]} 5. e3 {[%emt 0:08:38]} Bxc5 {[%emt 0:01:26]} 6. Bb5+ {[%emt 0:00:36]} Bd7 {[%emt 0:02:44]} 7. Bxd7+ {[%emt 0:00:16]} Nbxd7 {[%emt 0:00:13]} 8. O-O {[%emt 0:02:08]} Qb6 {[%emt 0:01:58]} 9. Nbd2 {[%emt 0:05:00]} Qxb2 {[%emt 0:06:10]} 10. Rb1 {[%emt 0:02:25]} Qa3 {[%emt 0:03:27]} 11. Qe2 {[%emt 0:11:27]} Qa4 {[%emt 0:02:14]} 12. Qb5 {[%emt 0:07:50]} Qxb5 {[%emt 0:03:49]} 13. Rxb5 {[%emt 0:02:09]} b6 {[%emt 0:01:42]} 14. Nd4 {[%emt 0:06:30]} Rc8 {[%emt 0:03:35]} 15. Rb2 {[%emt 0:05:07]} h6 {[%emt 0:01:36]} 16. Bh4 {[%emt 0:01:24]} O-O {[%emt 0:01:25]} 17. h3 {[%emt 0:02:27]} Bd6 {[%emt 0:08:47]} 18. f4 {[%emt 0:02:57]} Bc5 {[%emt 0:12:35]} 19. Kh1 {[%emt 0:07:02]} a6 {[%emt 0:03:16]} 20. g4 {[%emt 0:01:48]} Rc7 {[%emt 0:01:40]} 21. g5 {[%emt 0:02:47]} hxg5 {[%emt 0:01:27]} 22. fxg5 {[%emt 0:01:52]} Bxd4 {[%emt 0:08:57]} 23. exd4 {[%emt 0:00:12]} Ne8 {[%emt 0:01:24]} 24. Bg3 {[%emt 0:01:34]} Rc6 {[%emt 0:01:49]} 25. Rf3 {[%emt 0:03:04]} Nd6 {[%emt 0:00:53]} 26. Bxd6 {[%emt 0:01:01]} Rxd6 {[%emt 0:00:05]} 27. Rc3 {[%emt 0:00:06]} Nb8 {[%emt 0:03:54]} 28. Nf3 {[%emt 0:00:37]} b5 {[%emt 0:03:13]} 29. Ne5 {[%emt 0:02:18]} Rdd8 {[%emt 0:00:32]} 30. Nc6 {[%emt 0:01:21]} Nxc6 {[%emt 0:00:30]} 31. Rxc6 {[%emt 0:00:02]} Ra8 {[%emt 0:00:07]} 32. Rb3 {[%emt 0:01:04]} Rfc8 {[%emt 0:00:25]} 33. Rbc3 {[%emt 0:00:19]} Rxc6 {[%emt 0:01:09]} 34. Rxc6 {[%emt 0:00:02]} b4 {[%emt 0:01:58]} 35. Kg2 {[%emt 0:00:31]} Kf8 {[%emt 0:00:37]} 36. Kf3 {[%emt 0:00:22]} Ke8 {[%emt 0:01:28]} 37. Rc7 {[%emt 0:04:17]} Rd8 {[%emt 0:01:47]} 38. Ke3 {[%emt 0:02:31]} Rd7 {[%emt 0:00:29]} 39. Rc6 {[%emt 0:00:46]} Ra7 {[%emt 0:00:53]} 40. Rc8+ {[%emt 0:03:33]} Kd7 {[%emt 0:00:43]} 41. Rg8 {[%emt 0:04:02]} g6 {[%emt 0:00:05]} 42. Rf8 {[%emt 0:03:02]} Kc6 {[%emt 0:01:09]} 43. Rb8 {[%emt 0:05:41]} a5 {[%emt 0:02:27]} 44. Kd3 {[%emt 0:01:04]} Rb7 {[%emt 0:01:42]} 45. Rxb7 {[%emt 0:02:35]} Kxb7 {[%emt 0:00:01]} 46. c3 {[%emt 0:00:10]} Kb6 {[%emt 0:02:28]} 47. c4 {[%emt 0:01:06]} dxc4+ {[%emt 0:01:26]} 48. Kxc4 {[%emt 0:00:10]} Kc6 {[%emt 0:00:11]} 49. h4 {[%emt 0:01:24]} Kb6 {[%emt 0:01:04]} 50. d5 {[%emt 0:02:40]} e5 {[%emt 0:04:48]} 51. d6 {[%emt 0:15:27]} Kc6 {[%emt 0:30:26]} 52. d7 Kxd7 {[%emt 0:00:30]} 53. Kd5 {[%emt 0:01:00]} Ke7 {[%emt 0:00:30]} 54. Kxe5 {[%emt 0:00:30]} a4 55. Kd4 {[%emt 0:00:30]} b3 {[%emt 0:01:00]} 0-1

[Event "Lueneburg Open-B 2019"]
[Site "Lueneburg"]
[Date "2019.08.06"]
[Round "4.5"]
[White "Ramme, Georg"]
[Black "Schulze, Lukas"]
[Result "0-1"]
[ECO "E68"]
[WhiteElo "1660"]
[BlackElo "1724"]
[Annotator "NA"]
[PlyCount "49"]
[EventDate "2019.08.03"]
[EventType "swiss"]
[EventCountry "GER"]
[SourceTitle "playchess.com"]
[Source "ChessBase"]
[SourceQuality "1"]
[TimeControl "40/5400+30:1800+30"]

1. d4 {[%emt 0:00:00]} Nf6 {[%emt 0:00:00]} 2. Nf3 {[%emt 0:00:00]} g6 {[%emt 0:00:07]} 3. g3 {[%emt 0:00:00]} Bg7 {[%emt 0:00:14]} 4. Bg2 {[%emt 0:00:00]} d6 {[%emt 0:00:14]} 5. O-O {[%emt 0:00:25]} c6 {[%emt 0:00:47]} 6. c4 {[%emt 0:00:32]} O-O {[%emt 0:00:41]} 7. Nc3 {[%emt 0:00:18]} Nbd7 {[%emt 0:04:21]} 8. e4 {[%emt 0:02:14]} e5 {[%emt 0:05:01]} 9. Be3 {[%emt 0:01:28]} Ng4 {[%emt 0:01:24]} 10. Bg5 {[%emt 0:02:40]} f6 {[%emt 0:01:41]} 11. Bc1 {[%emt 0:02:48]} Nh6 {[%emt 0:01:01]} 12. h3 {[%emt 0:05:43]} Nf7 {[%emt 0:08:50]} 13. Be3 {[%emt 0:02:43]} Re8 {[%emt 0:06:19]} 14. b4 {[%emt 0:08:29]} exd4 {[%emt 0:02:22]} 15. Nxd4 {[%emt 0:06:13]} Nde5 {[%emt 0:02:37]} 16. Qb3 {[%emt 0:08:06]} Kh8 {[%emt 0:22:51]} 17. Rad1 {[%emt 0:01:17]} a5 {[%emt 0:02:51]} 18. a3 {[%emt 0:00:30]} Nh6 {[%emt 0:02:08]} 19. Kh2 {[%emt 0:06:20]} Qc7 {[%emt 0:02:22]} 20. b5 {[%emt 0:06:38]} Qf7 {[%emt 0:02:20]} 21. c5 {[%emt 0:04:57]} dxc5 {[%emt 0:02:21]} 22. Qxf7 {[%emt 0:00:25]} Nhxf7 {[%emt 0:00:37]} 23. Nb3 {[%emt 0:01:52]} c4 {[%emt 0:08:07]} 24. Nc5 {[%emt 0:10:48]} b6 {[%emt 0:02:21]} 25. N3a4 {[%emt 0:01:16]} 0-1

[Event "Lueneburg Open-B 2019"]
[Site "Lueneburg"]
[Date "2019.08.06"]
[Round "4.6"]
[White "Ahrens, Gunnar"]
[Black "Domschke, Stephan"]
[Result "1-0"]
[ECO "A00"]
[WhiteElo "1764"]
[BlackElo "1671"]
[Annotator "NA"]
[PlyCount "73"]
[EventDate "2019.08.03"]
[EventType "swiss"]
[EventCountry "GER"]
[SourceTitle "playchess.com"]
[Source "ChessBase"]
[SourceQuality "1"]
[TimeControl "40/5400+30:1800+30"]

1. a3 {[%emt 0:00:00]} Nf6 {[%emt 0:00:00]} 2. Nf3 {[%emt 0:00:00]} d5 {[%emt 0:00:08]} 3. e3 {[%emt 0:00:01]} Bg4 {[%emt 0:01:00]} 4. Be2 {[%emt 0:00:30]} Nbd7 {[%emt 0:00:18]} 5. O-O {[%emt 0:00:18]} e5 {[%emt 0:00:38]} 6. d3 {[%emt 0:00:36]} Bd6 {[%emt 0:00:45]} 7. h3 {[%emt 0:00:24]} Bh5 {[%emt 0:02:11]} 8. Nbd2 {[%emt 0:00:21]} O-O {[%emt 0:00:57]} 9. c4 {[%emt 0:01:33]} c6 {[%emt 0:00:53]} 10. b4 {[%emt 0:00:52]} Re8 {[%emt 0:02:46]} 11. c5 {[%emt 0:01:03]} Bb8 {[%emt 0:00:32]} 12. e4 {[%emt 0:00:36]} b6 {[%emt 0:00:58]} 13. Qc2 {[%emt 0:01:09]} Qc7 {[%emt 0:02:19]} 14. Bb2 {[%emt 0:01:27]} bxc5 {[%emt 0:02:51]} 15. bxc5 {[%emt 0:00:18]} a5 {[%emt 0:00:21]} 16. a4 {[%emt 0:03:55]} h6 {[%emt 0:03:42]} 17. Rab1 {[%emt 0:01:34]} Bg6 {[%emt 0:00:56]} 18. Rfe1 {[%emt 0:05:39]} Qa7 {[%emt 0:12:33]} 19. Ba3 {[%emt 0:01:10]} Bc7 {[%emt 0:06:22]} 20. Nh2 {[%emt 0:04:06]} Nb8 {[%emt 0:01:07]} 21. Bf3 {[%emt 0:01:48]} d4 {[%emt 0:04:25]} 22. Nc4 {[%emt 0:04:15]} Na6 {[%emt 0:01:16]} 23. Nd6 {[%emt 0:00:55]} Reb8 {[%emt 0:02:40]} 24. Ng4 {[%emt 0:01:03]} Nd7 {[%emt 0:01:48]} 25. Nf5 {[%emt 0:01:17]} Rxb1 {[%emt 0:10:53]} 26. Rxb1 {[%emt 0:00:09]} Rb8 {[%emt 0:00:13]} 27. Ne7+ {[%emt 0:01:22]} Kh7 {[%emt 0:02:23]} 28. Nxc6 {[%emt 0:01:32]} Rxb1+ {[%emt 0:00:18]} 29. Qxb1 {[%emt 0:00:03]} Qa8 {[%emt 0:00:10]} 30. Ne7 {[%emt 0:00:22]} Naxc5 {[%emt 0:01:41]} 31. Bxc5 {[%emt 0:00:41]} Nxc5 {[%emt 0:00:27]} 32. Qb5 {[%emt 0:00:23]} Bd6 {[%emt 0:05:42]} 33. Nxg6 {[%emt 0:01:34]} f6 {[%emt 0:06:13]} 34. Nh4 {[%emt 0:02:01]} Qa6 {[%emt 0:03:23]} 35. Nxf6+ {[%emt 0:00:51]} gxf6 {[%emt 0:00:36]} 36. Qe8 {[%emt 0:00:27]} Bc7 {[%emt 0:08:47]} 37. Qf7+ {[%emt 0:00:21]} 1-0

[Event "Lueneburg Open-B 2019"]
[Site "Lueneburg"]
[Date "2019.08.06"]
[Round "4.7"]
[White "Ische, Helmut"]
[Black "Buetow, Ingo"]
[Result "1/2-1/2"]
[ECO "B01"]
[WhiteElo "1662"]
[BlackElo "1747"]
[Annotator "NA"]
[PlyCount "36"]
[EventDate "2019.08.03"]
[EventType "swiss"]
[EventCountry "GER"]
[SourceTitle "playchess.com"]
[Source "ChessBase"]
[SourceQuality "1"]
[TimeControl "40/5400+30:1800+30"]

1. e4 {[%emt 0:00:00]} d5 {[%emt 0:00:00]} 2. Nf3 {[%emt 0:00:00]} dxe4 {[%emt 0:00:02]} 3. Ng5 {[%emt 0:00:00]} Nf6 {[%emt 0:00:53]} 4. Bc4 {[%emt 0:00:16]} e6 {[%emt 0:00:17]} 5. Nc3 {[%emt 0:00:05]} Be7 {[%emt 0:03:14]} 6. Ngxe4 {[%emt 0:01:57]} Nbd7 {[%emt 0:00:50]} 7. d3 {[%emt 0:04:50]} b6 {[%emt 0:00:43]} 8. O-O {[%emt 0:07:22]} O-O {[%emt 0:01:06]} 9. Bf4 {[%emt 0:05:26]} a6 {[%emt 0:03:28]} 10. a4 {[%emt 0:03:21]} Bb7 {[%emt 0:01:31]} 11. Re1 {[%emt 0:01:37]} Nd5 {[%emt 0:03:12]} 12. Bg3 {[%emt 0:05:03]} Bb4 {[%emt 0:06:41]} 13. Re2 {[%emt 0:12:25]} Nxc3 {[%emt 0:03:33]} 14. bxc3 {[%emt 0:00:17]} Be7 {[%emt 0:00:41]} 15. Qd2 {[%emt 0:04:35]} Nf6 {[%emt 0:02:02]} 16. Nxf6+ {[%emt 0:04:20]} Bxf6 {[%emt 0:00:25]} 17. d4 {[%emt 0:02:33]} Qd7 {[%emt 0:00:47]} 18. Bd3 {[%emt 0:00:48]} Rac8 {[%emt 0:04:41]} 1/2-1/2

[Event "Lueneburg Open-B 2019"]
[Site "Lueneburg"]
[Date "2019.08.06"]
[Round "4.8"]
[White "Gerdau, Niklas"]
[Black "Seeber, Helmut"]
[Result "0-1"]
[ECO "C51"]
[WhiteElo "1704"]
[BlackElo "1580"]
[Annotator "NA"]
[PlyCount "32"]
[EventDate "2019.08.03"]
[EventType "swiss"]
[EventCountry "GER"]
[SourceTitle "playchess.com"]
[Source "ChessBase"]
[SourceQuality "1"]
[TimeControl "40/5400+30:1800+30"]

1. e4 {[%emt 0:00:00]} e5 {[%emt 0:00:00]} 2. Nf3 {[%emt 0:00:00]} Nc6 {[%emt 0:00:00]} 3. Bc4 {[%emt 0:00:00]} Bc5 {[%emt 0:00:00]} 4. b4 {[%emt 0:00:00]} Bxb4 {[%emt 0:00:12]} 5. c3 {[%emt 0:00:00]} Be7 {[%emt 0:00:07]} 6. d4 {[%emt 0:00:08]} exd4 {[%emt 0:03:22]} 7. cxd4 {[%emt 0:00:40]} Na5 {[%emt 0:00:20]} 8. Bxf7+ {[%emt 0:01:08]} Kxf7 {[%emt 0:04:39]} 9. Ne5+ {[%emt 0:01:04]} Ke8 {[%emt 0:01:48]} 10. Qh5+ {[%emt 0:00:25]} g6 {[%emt 0:00:37]} 11. Nxg6 {[%emt 0:00:35]} Nf6 {[%emt 0:00:22]} 12. Qh6 {[%emt 0:10:01]} Rg8 {[%emt 0:05:00]} 13. Nh4 {[%emt 0:06:06]} Bf8 {[%emt 0:12:00]} 14. Qd2 {[%emt 0:04:04]} b6 {[%emt 0:07:26]} 15. e5 {[%emt 0:03:04]} Nd5 {[%emt 0:01:49]} 16. g3 {[%emt 0:10:57]} Bb4 {[%emt 1:00:18]} 0-1

[Event "Lueneburg Open-B 2019"]
[Site "Lueneburg"]
[Date "2019.08.06"]
[Round "4.9"]
[White "Suliga, Eckhard"]
[Black "Jessen, Bjarne"]
[Result "1-0"]
[ECO "C68"]
[WhiteElo "1682"]
[BlackElo "1569"]
[Annotator "NA"]
[PlyCount "93"]
[EventDate "2019.08.03"]
[EventType "swiss"]
[EventCountry "GER"]
[SourceTitle "playchess.com"]
[Source "ChessBase"]
[SourceQuality "1"]
[TimeControl "40/5400+30:1800+30"]

1. e4 {[%emt 0:00:00]} e5 {[%emt 0:00:00]} 2. Nf3 {[%emt 0:00:00]} Nc6 {[%emt 0:00:00]} 3. Bb5 {[%emt 0:00:00]} a6 {[%emt 0:00:00]} 4. Bxc6 {[%emt 0:00:05]} dxc6 {[%emt 0:00:00]} 5. O-O {[%emt 0:00:14]} Bg4 {[%emt 0:02:43]} 6. h3 {[%emt 0:00:03]} Bh5 {[%emt 0:28:07]} 7. g4 {[%emt 0:00:38]} Bg6 {[%emt 0:02:50]} 8. Nxe5 {[%emt 0:00:09]} Qh4 {[%emt 0:05:47]} 9. Qf3 {[%emt 0:00:13]} Bc5 {[%emt 0:02:13]} 10. d3 {[%emt 0:03:33]} Bd4 {[%emt 0:02:45]} 11. Nxg6 {[%emt 0:01:37]} hxg6 {[%emt 0:01:14]} 12. Kg2 {[%emt 0:00:22]} O-O-O {[%emt 0:05:36]} 13. Nd2 {[%emt 0:08:21]} Ne7 {[%emt 0:03:19]} 14. Nc4 {[%emt 0:02:44]} f5 {[%emt 0:01:03]} 15. Be3 {[%emt 0:06:40]} fxe4 {[%emt 0:06:45]} 16. dxe4 {[%emt 0:00:35]} b5 {[%emt 0:03:00]} 17. Bxd4 {[%emt 0:07:53]} Rxd4 {[%emt 0:00:45]} 18. Ne3 {[%emt 1:05:53]} Rxe4 {[%emt 0:32:53]} 19. Rh1 {[%emt 0:00:00]} Re6 {[%emt 0:00:00]} 20. Qg3 {[%emt 0:00:00]} Qg5 {[%emt 0:00:00]} 21. Rad1 {[%emt 0:00:00]} Nd5 {[%emt 0:00:00]} 22. Nxd5 {[%emt 0:00:00]} cxd5 {[%emt 0:00:00]} 23. Rhe1 {[%emt 0:00:00]} Rhe8 {[%emt 0:00:00]} 24. Rxe6 {[%emt 0:00:00]} Rxe6 {[%emt 0:00:00]} 25. Qd3 {[%emt 0:00:00]} c6 {[%emt 0:00:00]} 26. b3 {[%emt 0:00:00]} Qf4 {[%emt 0:00:00]} 27. a4 {[%emt 0:00:00]} Qe4+ {[%emt 0:00:00]} 28. Qxe4 {[%emt 0:00:00]} Rxe4 {[%emt 0:00:00]} 29. axb5 {[%emt 0:00:00]} axb5 {[%emt 0:00:00]} 30. Rd2 {[%emt 0:00:00]} Kd7 {[%emt 0:00:00]} 31. f3 {[%emt 0:00:00]} Re1 {[%emt 0:00:00]} 32. Kg3 {[%emt 0:00:00]} Ke6 {[%emt 0:00:00]} 33. Kf4 {[%emt 0:00:00]} Kf6 {[%emt 0:00:00]} 34. g5+ {[%emt 0:00:00]} Ke6 {[%emt 0:00:00]} 35. Rh2 {[%emt 0:00:00]} b4 {[%emt 0:00:00]} 36. h4 {[%emt 0:00:00]} c5 {[%emt 0:00:00]} 37. h5 {[%emt 0:00:00]} gxh5 {[%emt 0:00:00]} 38. Rxh5 {[%emt 0:00:00]} g6 {[%emt 0:00:21]} 39. Rh6 {[%emt 0:00:13]} Kf7 {[%emt 0:00:20]} 40. Rh7+ {[%emt 0:00:11]} Ke8 {[%emt 0:07:57]} 41. Rc7 {[%emt 0:31:10]} c4 {[%emt 0:31:48]} 42. bxc4 {[%emt 0:00:03]} d4 {[%emt 0:00:38]} 43. Rb7 {[%emt 0:00:26]} Rc1 {[%emt 0:00:37]} 44. Rxb4 {[%emt 0:00:25]} Rxc2 {[%emt 0:00:01]} 45. Ke4 {[%emt 0:02:20]} Rd2 {[%emt 0:00:02]} 46. c5 {[%emt 0:00:54]} Kd7 {[%emt 0:00:03]} 47. Rxd4+ {[%emt 0:00:22]} 1-0

[Event "Lueneburg Open-B 2019"]
[Site "Lueneburg"]
[Date "2019.08.06"]
[Round "4.10"]
[White "Vogel, Elisabeth"]
[Black "Thomas, Andreas"]
[Result "1/2-1/2"]
[ECO "C88"]
[WhiteElo "1277"]
[BlackElo "1726"]
[Annotator "NA"]
[PlyCount "96"]
[EventDate "2019.08.03"]
[EventType "swiss"]
[EventCountry "GER"]
[SourceTitle "playchess.com"]
[Source "ChessBase"]
[SourceQuality "1"]
[TimeControl "40/5400+30:1800+30"]

1. e4 {[%emt 0:00:00]} e5 {[%emt 0:00:00]} 2. Nf3 {[%emt 0:00:00]} Nc6 {[%emt 0:00:00]} 3. Bb5 {[%emt 0:00:24]} a6 {[%emt 0:00:00]} 4. Ba4 {[%emt 0:00:05]} Nf6 {[%emt 0:00:53]} 5. d3 {[%emt 0:00:19]} b5 {[%emt 0:00:53]} 6. Bb3 {[%emt 0:00:07]} Be7 {[%emt 0:01:37]} 7. Nbd2 {[%emt 0:01:44]} d6 {[%emt 0:05:36]} 8. O-O {[%emt 0:01:19]} Na5 {[%emt 0:01:35]} 9. Re1 {[%emt 0:03:28]} Nxb3 {[%emt 0:02:11]} 10. axb3 {[%emt 0:00:08]} O-O {[%emt 0:00:26]} 11. Nf1 {[%emt 0:00:38]} c5 {[%emt 0:03:29]} 12. Ng3 {[%emt 0:02:09]} Re8 {[%emt 0:04:37]} 13. Bd2 {[%emt 0:03:26]} Qc7 {[%emt 0:04:11]} 14. Ba5 {[%emt 0:02:50]} Qd7 {[%emt 0:05:55]} 15. Bd2 {[%emt 0:01:09]} Bd8 {[%emt 0:06:14]} 16. h3 {[%emt 0:07:38]} g6 {[%emt 0:05:14]} 17. Nh2 {[%emt 0:07:59]} d5 {[%emt 0:10:53]} 18. exd5 {[%emt 0:03:30]} Qxd5 {[%emt 0:06:19]} 19. Ne4 {[%emt 0:06:44]} Nxe4 {[%emt 0:03:30]} 20. dxe4 {[%emt 0:00:08]} Qe6 {[%emt 0:02:21]} 21. b4 {[%emt 0:07:48]} c4 {[%emt 0:34:36]} 22. c3 {[%emt 0:03:35]} Bb7 {[%emt 0:00:00]} 23. Nf3 {[%emt 0:01:09]} Bf6 {[%emt 0:00:00]} 24. Qe2 {[%emt 0:01:19]} Red8 {[%emt 0:00:00]} 25. Rad1 {[%emt 0:04:30]} Rd3 {[%emt 0:00:00]} 26. Bc1 {[%emt 0:04:21]} Rad8 {[%emt 0:00:00]} 27. Rxd3 {[%emt 0:01:29]} Rxd3 {[%emt 0:00:00]} 28. Rf1 {[%emt 0:08:09]} Qc6 {[%emt 0:00:00]} 29. Re1 {[%emt 0:00:52]} Qd6 {[%emt 0:00:00]} 30. Kf1 {[%emt 0:02:07]} Qd8 {[%emt 0:00:00]} 31. Kg1 {[%emt 0:01:43]} Qd6 {[%emt 0:00:00]} 32. Kf1 {[%emt 0:00:52]} Bd8 {[%emt 0:00:00]} 33. Kg1 {[%emt 0:03:29]} f6 {[%emt 0:00:00]} 34. Kf1 {[%emt 0:01:03]} a5 {[%emt 0:00:00]} 35. bxa5 {[%emt 0:00:15]} Bxa5 {[%emt 0:00:00]} 36. Bd2 {[%emt 0:04:40]} Kf7 {[%emt 0:00:00]} 37. Ra1 {[%emt 0:02:23]} Bb6 {[%emt 0:00:00]} 38. Rd1 {[%emt 0:00:58]} Ba5 {[%emt 0:01:37]} 39. Ne1 {[%emt 0:00:53]} Bxe4 {[%emt 0:02:20]} 40. f3 {[%emt 0:00:21]} Bf5 {[%emt 0:04:58]} 41. g4 {[%emt 0:30:39]} Be6 {[%emt 0:08:19]} 42. Nxd3 {[%emt 0:00:00]} cxd3 {[%emt 0:00:17]} 43. Qe4 {[%emt 0:00:00]} Bd5 {[%emt 0:01:03]} 44. Qe1 {[%emt 0:00:00]} Bxf3 {[%emt 0:00:36]} 45. Ra1 {[%emt 0:16:10]} Be2+ {[%emt 0:22:50]} 46. Kg2 {[%emt 0:00:00]} Qc6+ {[%emt 0:00:00]} 47. Kh2 {[%emt 0:00:00]} Bb6 {[%emt 0:00:00]} 48. Kg3 {[%emt 0:00:00]} Qf3+ {[%emt 0:00:00]} 1/2-1/2

[Event "Lueneburg Open-B 2019"]
[Site "Lueneburg"]
[Date "2019.08.06"]
[Round "4.11"]
[White "Rempe, Janne"]
[Black "Cordsen, Heinrich"]
[Result "1/2-1/2"]
[ECO "D02"]
[WhiteElo "1594"]
[BlackElo "1685"]
[Annotator "NA"]
[PlyCount "36"]
[EventDate "2019.08.03"]
[EventType "swiss"]
[EventCountry "GER"]
[SourceTitle "playchess.com"]
[Source "ChessBase"]
[SourceQuality "1"]
[TimeControl "40/5400+30:1800+30"]

1. d4 {[%emt 0:00:00]} d5 {[%emt 0:00:00]} 2. Nf3 {[%emt 0:00:00]} Nf6 {[%emt 0:00:23]} 3. Bf4 {[%emt 0:00:05]} e6 {[%emt 0:00:53]} 4. e3 {[%emt 0:00:16]} Bd6 {[%emt 0:01:45]} 5. Bg3 {[%emt 0:00:38]} O-O {[%emt 0:06:17]} 6. c3 {[%emt 0:00:33]} c5 {[%emt 0:01:53]} 7. Nbd2 {[%emt 0:00:34]} Nc6 {[%emt 0:05:25]} 8. b3 {[%emt 0:01:37]} cxd4 {[%emt 0:07:22]} 9. exd4 {[%emt 0:01:01]} b6 {[%emt 0:08:45]} 10. Bd3 {[%emt 0:00:56]} Bb7 {[%emt 0:04:49]} 11. O-O {[%emt 0:04:28]} Bxg3 {[%emt 0:57:58]} 12. fxg3 {[%emt 0:02:46]} Qd6 {[%emt 0:00:00]} 13. Nh4 {[%emt 0:02:58]} e5 {[%emt 0:00:00]} 14. Nf5 {[%emt 0:06:13]} Qe6 {[%emt 0:00:00]} 15. dxe5 {[%emt 0:06:51]} Nxe5 {[%emt 0:00:00]} 16. Re1 {[%emt 0:00:58]} Rae8 {[%emt 0:00:00]} 17. Nd4 {[%emt 0:04:40]} Qd7 {[%emt 0:00:00]} 18. Bc2 {[%emt 0:01:17]} Nc6 {[%emt 0:00:00]} 1/2-1/2